bitfinex-derivatives/quotes_BNBF0:USTF0_20250112
["timestamp","ask_amount","ask_price","bid_price","bid_amount"]
[1736713373270,1.07406132,697.17,695.57,0.28753396]
[1736713373469,0.26381422,697.16,695.57,0.28753396]
[1736713373874,1.07406132,697.15,695.57,0.28753396]
[1736713374066,0.26381422,697.14,695.57,0.28753396]
[1736713374865,0.26381401,697.13,695.57,0.28753396]
[1736713375071,0.26381401,697.12,695.57,0.28753396]
[1736713375369,0.26381401,697.11,695.57,0.28753396]
[1736713375574,0.26381401,697.1,695.57,0.28753396]
[1736713375868,1.07406132,697.15,695.57,0.28753396]
[1736713376069,0.26381337,697.14,695.57,0.28753396]
[1736713377571,0.26380394,697.13,695.57,0.28753396]
[1736713377764,0.26380394,697.12,695.57,0.28753396]
[1736713377965,0.26380394,697.11,695.57,0.28753396]
[1736713378169,0.26380394,697.1,695.57,0.28753396]
[1736713378368,0.26380394,697.09,695.65,1.28281017]
[1736713378571,0.26380394,697.08,695.65,1.28281017]
[1736713378872,0.26380394,697.07,695.67,0.28749263]
[1736713379072,0.26380394,697.06,695.67,0.28749263]
[1736713379268,0.26380394,697.05,695.67,0.28749263]
[1736713379472,1.07406132,697.13,695.67,0.28749263]
[1736713379773,0.26380601,697.12,695.67,0.28749263]
[1736713380370,1.33786733,697.12,695.67,1.5703028]
[1736713380569,0.26380601,697.11,695.67,1.5703028]
[1736713380774,0.26380601,697.11,695.67,4.38382978]
[1736713380975,1.07406132,697.12,695.68,2.81352698]
[1736713381374,1.07284374,697.3,695.68,2.81352698]
[1736713381375,1.07406132,697.19,695.7,0.28748023]
[1736713382677,1.07406132,697.23,695.7,0.28748023]
[1736713382876,0.26378368,697.22,695.7,0.28748023]
[1736713383971,0.26378368,697.22,695.7,3.27246731]
[1736713384171,0.26378368,697.22,695.71,2.81352698]
[1736713384370,1.07406132,697.17,695.71,2.81352698]
[1736713384573,1.07406132,697.17,695.73,0.28746783]
[1736713385371,1.07406132,697.16,695.73,1.36858076]
[1736713385573,1.07406132,697.16,695.73,3.10099481]
[1736713386478,1.07406132,697.15,695.73,3.10099481]
[1736713386880,1.07406132,697.15,695.74,2.98498708]
[1736713387077,1.07406132,697.15,695.76,0.28745544]
[1736713388082,1.07406132,697.15,695.76,3.27244252]
[1736713388284,1.07406132,697.15,695.77,2.81352698]
[1736713388585,1.07406132,697.15,695.79,0.28744305]
[1736713390785,1.07406132,697.15,695.79,3.09769368]
[1736713391582,1.07406132,697.15,695.8,2.98498708]
[1736713391885,1.07406132,697.15,695.82,0.28743065]
[1736713392086,1.07406132,697.1,695.82,0.28743065]
[1736713393482,1.07406132,697.1,695.82,3.27241773]
[1736713393686,1.07406132,697.1,695.83,2.81025063]
[1736713393887,1.07406132,697.1,695.85,0.28741826]
[1736713394281,1.07406132,697.11,695.85,0.28741826]
[1736713395085,1.07406132,697.11,695.85,1.36765759]
[1736713395281,1.07406132,697.11,695.85,3.09766889]
[1736713395887,1.07406132,697.12,695.85,3.09766889]
[1736713396182,1.07406132,697.12,695.86,2.98498708]
[1736713396387,1.07406132,697.12,695.87,3.09766063]
[1736713396687,1.07406132,697.12,695.88,0.28740587]
[1736713397281,1.07406132,697.12,695.88,3.27239295]
[1736713397484,1.07406132,697.12,695.89,1.7300113]
[1736713397687,1.07406132,697.12,695.9,0.28739761]
[1736713399786,1.07406132,697.2,695.9,0.28739761]
[1736713400891,1.07406132,697.19,695.9,0.28739761]
[1736713403590,1.07406132,697.2,695.9,0.28739761]
[1736713405186,1.07406132,697.19,695.9,0.28739761]
[1736713405993,1.07406132,697.2,695.9,0.28739761]
[1736713406687,1.07406132,697.17,695.9,0.28739761]
[1736713407795,1.07406132,697.19,695.9,0.28739761]
[1736713409191,1.07406132,697.12,695.9,0.28739761]
[1736713411396,1.07406132,697.09,695.9,0.28739761]
[1736713412896,1.07406132,697.08,695.9,0.28739761]
[1736713413697,1.07406132,697.07,695.9,0.28739761]
[1736713414800,1.07406132,697.05,695.9,0.28739761]
[1736713416698,0.88700703,697.4,695.9,0.28739761]
[1736713416699,1.07406132,697.04,695.9,3.27238469]
[1736713416898,1.07406132,697.04,695.91,2.8116453]
[1736713417099,1.07406132,697.04,695.92,0.28738935]
[1736713417395,1.07406132,697.06,695.92,0.28738935]
[1736713417895,1.07406132,697.06,695.92,3.27237643]
[1736713418100,1.07406132,697.06,695.93,1.73084457]
[1736713418295,1.07406132,697.06,695.94,0.28738109]
[1736713419502,1.07406132,697.06,695.94,3.27236817]
[1736713419699,1.07406132,697.06,695.95,2.81238898]
[1736713419895,1.07406132,697.06,695.96,0.28737283]
[1736713420201,1.07406132,697.05,695.96,0.28737283]
[1736713421103,1.07406132,697.06,695.96,3.27235991]
[1736713421405,1.07406132,697.06,695.97,2.81242697]
[1736713421702,0.28677535,697.41,695.97,2.81242697]
[1736713421703,1.07406132,697.04,695.98,0.28736457]
[1736713422104,1.07406132,697.04,695.98,3.27235165]
[1736713422305,1.07406132,697.04,695.99,1.73084457]
[1736713422506,1.07406132,697.04,696.0,0.28735632]
[1736713423507,1.07406132,697.05,696.0,0.28735632]
[1736713424407,1.07406132,697.04,696.0,0.28735632]
[1736713428502,1.07406132,697.05,696.0,0.28735632]
[1736713432908,1.07284374,697.32,696.0,0.28735632]
[1736713432909,1.07406132,697.14,696.0,0.28735632]
[1736713433510,1.07406132,697.19,696.0,0.28735632]
[1736713434908,1.07406132,697.19,696.0,3.2723434]
[1736713435109,1.07406132,697.21,696.01,2.81245848]
[1736713435310,1.07406132,697.21,696.02,0.28734806]
[1736713435910,1.07406132,697.22,696.02,0.28734806]
[1736713436411,1.07406132,697.22,696.02,3.27233514]
[1736713436612,1.07406132,697.22,696.03,2.81245848]
[1736713436808,1.07406132,697.21,696.04,0.2873398]
[1736713437608,1.07406132,697.21,696.04,3.27232688]
[1736713437806,1.07406132,697.22,696.05,2.81245848]
[1736713438011,1.07406132,697.22,696.06,0.28733155]
[1736713438713,1.07406132,697.21,696.06,0.28733155]
[1736713439607,1.07284374,697.38,696.06,0.28733155]
[1736713439608,1.07406132,697.2,696.06,3.27231863]
[1736713439808,1.07406132,697.2,696.07,2.81245848]
[1736713440014,1.07406132,697.2,696.08,0.28732329]
[1736713440214,1.07406132,697.21,696.08,0.28732329]
[1736713440916,1.07406132,697.21,696.08,3.27231037]
[1736713441115,1.07406132,697.21,696.09,2.81245848]
[1736713441312,1.07406132,697.21,696.1,0.28731504]
[1736713443819,1.07406132,697.23,696.1,0.28731504]
[1736713445525,0.26375408,697.22,696.1,0.28731504]
[1736713446923,1.07406132,697.18,696.1,0.28731504]
[1736713450026,0.28677535,697.41,696.1,0.28731504]
[1736713450027,1.07406132,697.17,696.1,0.28731504]
[1736713451727,0.88643833,697.4,696.1,0.28731504]
[1736713451728,1.07406132,697.18,696.1,0.28731504]
[1736713452630,1.07406132,697.22,696.1,0.28731504]
[1736713453629,1.07406132,697.24,696.1,0.28731504]
[1736713454630,1.07406132,697.21,696.1,0.28731504]
[1736713456234,1.07406132,697.2,696.1,0.28731504]
[1736713457435,1.07406132,697.19,696.1,0.28731504]
[1736713460235,1.07406132,697.22,696.1,0.28731504]
[1736713460829,1.07406132,697.21,696.1,0.28731504]
[1736713461835,1.07406132,697.19,696.1,0.28731504]
[1736713462740,1.07406132,697.18,696.1,0.28731504]
[1736713463536,1.07406132,697.17,696.1,0.28731504]
[1736713467239,1.07406132,697.2,696.1,0.28731504]
[1736713468737,0.28677535,697.41,696.1,0.28731504]
[1736713468738,1.07406132,697.21,696.1,0.28731504]
[1736713469839,1.07406132,697.2,696.1,0.28731504]
[1736713470640,1.07406132,697.21,696.1,0.28731504]
[1736713471838,1.07406132,697.21,696.1,2.01815961]
[1736713472244,1.07406132,697.21,696.1,3.09983393]
[1736713472639,1.07406132,697.21,696.11,2.98498708]
[1736713472845,1.07406132,697.21,696.12,2.01815135]
[1736713473044,1.07406132,697.21,696.13,0.28730265]
[1736713473645,1.07406132,697.19,696.13,0.28730265]
[1736713474349,1.07406132,697.18,696.13,0.28730265]
[1736713475145,1.07406132,697.19,696.13,0.28730265]
[1736713479749,0.28677535,697.41,696.13,0.28730265]
[1736713479750,1.07406132,697.29,696.13,0.28730265]
[1736713483353,0.28677535,697.41,696.13,0.28730265]
[1736713483354,1.07406132,697.3,696.13,0.28730265]
[1736713487261,1.07406132,697.29,696.13,0.28730265]
[1736713488764,1.07406132,697.32,696.13,0.28730265]
[1736713489661,1.07406132,697.3,696.13,0.28730265]
[1736713490464,0.28677535,697.41,696.13,0.28730265]
[1736713490465,1.07406132,697.31,696.13,0.28730265]
[1736713490864,1.07406132,697.31,696.13,1.36902587]
[1736713491165,1.07406132,697.31,696.13,3.09987044]
[1736713491664,1.07406132,697.31,696.14,2.98498708]
[1736713491865,1.07406132,697.31,696.15,3.09986219]
[1736713492065,0.28677535,697.41,696.16,0.28729027]
[1736713492066,1.07406132,697.32,696.16,0.28729027]
[1736713493166,1.07406132,697.32,696.16,3.27227735]
[1736713493362,1.07406132,697.32,696.17,2.81256779]
[1736713493758,1.07406132,697.32,696.18,0.28728202]
[1736713494866,1.07406132,697.32,696.18,3.2722691]
[1736713495167,1.07406132,697.32,696.19,1.73084457]
[1736713495363,1.07406132,697.32,696.2,0.28727377]
[1736713496367,1.07406132,697.33,696.2,0.28727377]
[1736713497468,1.07406132,697.3,696.2,0.28727377]
[1736713498667,1.07406132,697.33,696.2,0.28727377]
[1736713500469,1.07406132,697.31,696.2,0.28727377]
[1736713501368,1.07406132,697.3,696.2,0.28727377]
[1736713502371,0.28677535,697.41,696.2,0.28727377]
[1736713511473,1.36083667,697.41,696.2,0.28727377]
[1736713511678,0.26370501,697.4,696.2,0.28727377]
[1736713512080,1.36083667,697.41,696.2,0.28727377]
[1736713512278,0.26370231,697.4,696.2,0.28727377]
[1736713512881,1.07406132,697.27,696.2,0.28727377]
[1736713514882,0.28677535,697.41,696.2,0.28727377]
[1736713514883,1.07406132,697.25,696.2,0.28727377]
[1736713515875,1.07406132,697.26,696.2,0.28727377]
[1736713518985,1.07406132,697.3,696.2,0.28727377]
[1736713519887,1.07406132,697.29,696.2,0.28727377]
[1736713523588,1.07406132,697.28,696.2,0.28727377]
[1736713524388,0.28677535,697.41,696.2,0.28727377]
[1736713524389,1.07406132,697.26,696.2,0.28727377]
[1736713525987,1.07406132,697.24,696.2,0.28727377]
[1736713526989,1.07406132,697.26,696.2,0.28727377]
[1736713527983,1.07406132,697.27,696.2,0.28727377]
[1736713529183,0.28677535,697.41,696.2,0.28727377]
[1736713529184,1.07406132,697.33,696.2,0.28727377]
[1736713529989,1.07406132,697.36,696.2,0.28727377]
[1736713532093,1.07406132,697.38,696.2,0.28727377]
[1736713532689,1.07406132,697.39,696.2,0.28727377]
[1736713533790,1.07406132,697.37,696.2,0.28727377]
[1736713534293,1.07406132,697.37,696.2,1.36790785]
[1736713534489,1.07406132,697.37,696.2,3.09866273]
[1736713534893,1.36083667,697.41,696.2,3.09866273]
[1736713535691,1.36083667,697.41,696.21,2.98498708]
[1736713535987,0.28677535,697.41,696.22,3.09865447]
[1736713536194,0.28677535,697.41,696.23,0.28726139]
[1736713536891,1.36083667,697.41,696.23,3.27224847]
[1736713537091,1.36083667,697.41,696.24,2.81138896]
[1736713537292,1.36083667,697.41,696.25,0.28725314]
[1736713537593,0.28677535,697.41,696.25,0.28725314]
[1736713538294,0.28677535,697.41,696.25,3.27224022]
[1736713538489,0.28677535,697.41,696.26,2.81138896]
[1736713538694,0.28677535,697.41,696.27,0.28724489]
[1736713539894,0.28677535,697.41,696.27,3.27223197]
[1736713540091,0.28677535,697.41,696.28,2.81138896]
[1736713540292,0.28677535,697.41,696.29,0.28723663]
[1736713541394,0.28677535,697.41,696.29,3.27222371]
[1736713541590,1.07406132,697.39,696.3,1.73075488]
[1736713541792,1.07406132,697.39,696.31,0.28722838]
[1736713543197,0.28677535,697.41,696.31,0.28722838]
[1736713566214,1.07406132,697.32,696.31,0.28722838]
[1736713568317,1.07406132,697.31,696.31,0.28722838]
[1736713569919,0.28677535,697.41,696.31,0.28722838]
[1736713569920,1.07406132,697.32,696.31,0.28722838]
[1736713570920,1.07406132,697.31,696.31,0.28722838]
[1736713571717,1.07406132,697.29,696.31,0.28722838]
[1736713573121,0.28677535,697.41,696.31,0.28722838]
[1736713573122,1.07406132,697.28,696.31,0.28722838]
[1736713574722,1.07406132,697.27,696.31,0.28722838]
[1736713575624,1.07406132,697.28,696.31,0.28722838]
[1736713576318,1.07406132,697.25,696.31,0.28722838]
[1736713579325,0.28677535,697.41,696.31,0.28722838]
[1736713579326,1.07406132,697.29,696.31,0.28722838]
[1736713580218,1.07406132,697.26,696.31,0.28722838]
[1736713583025,0.28677535,697.41,696.31,0.28722838]
[1736713583026,1.07406132,697.27,696.31,0.28722838]
[1736713584027,1.07406132,697.26,696.31,0.28722838]
[1736713586028,1.07406132,697.28,696.31,0.28722838]
[1736713587022,0.28677535,697.41,696.31,0.28722838]
[1736713587023,1.07406132,697.27,696.31,0.28722838]
[1736713588127,1.07406132,697.26,696.31,0.28722838]
[1736713589329,1.07406132,697.24,696.31,0.28722838]
[1736713592538,1.07406132,697.22,696.31,0.28722838]
[1736713594937,1.07406132,697.25,696.31,0.28722838]
[1736713596741,1.07406132,697.23,696.31,0.28722838]
[1736713601545,1.07406132,697.21,696.31,0.28722838]
[1736713602348,1.07406132,697.22,696.31,0.28722838]
[1736713605248,0.28677535,697.41,696.31,0.28722838]
[1736713614653,0.26370593,697.4,696.31,0.28722838]
[1736713615754,1.07406132,697.27,696.31,0.28722838]
[1736713617556,1.07406132,697.25,696.31,0.28722838]
[1736713619156,1.07406132,697.24,696.31,0.28722838]
[1736713619956,1.07406132,697.25,696.31,0.28722838]
[1736713620958,1.07406132,697.22,696.31,0.28722838]
[1736713622860,1.07406132,697.21,696.31,0.28722838]
[1736713628568,1.07406132,697.22,696.31,0.28722838]
[1736713631569,1.07406132,697.21,696.31,0.28722838]
[1736713632569,1.07406132,697.24,696.31,0.28722838]
[1736713639175,1.07406132,697.22,696.31,0.28722838]
[1736713647078,1.07406132,697.18,696.31,0.28722838]
[1736713649374,1.07406132,697.19,696.31,0.28722838]
[1736713651883,1.07406132,697.2,696.31,0.28722838]
[1736713655787,1.07406132,697.21,696.31,0.28722838]
[1736713657091,1.07406132,697.23,696.31,0.28722838]
[1736713661489,1.07406132,697.25,696.31,0.28722838]
[1736713662493,1.07406132,697.28,696.31,0.28722838]
[1736713664293,1.07406132,697.29,696.31,0.28722838]
[1736713664893,1.07406132,697.3,696.31,0.28722838]
[1736713669195,1.07406132,697.28,696.31,0.28722838]
[1736713670995,1.07406132,697.26,696.31,0.28722838]
[1736713671699,1.07406132,697.2,696.31,0.28722838]
[1736713672596,0.28677535,697.41,696.31,0.28722838]
[1736713672597,1.07406132,697.21,696.31,0.28722838]
[1736713674201,1.07406132,697.22,696.31,0.28722838]
[1736713674998,1.07406132,697.21,696.31,0.28722838]
[1736713678305,1.07406132,697.22,696.31,0.28722838]
[1736713679506,1.07406132,697.21,696.31,0.28722838]
[1736713683408,1.07406132,697.22,696.31,0.28722838]
[1736713684303,1.07406132,697.19,696.31,0.28722838]
[1736713685306,1.07406132,697.21,696.31,0.28722838]
[1736713690110,1.07406132,697.2,696.31,0.28722838]
[1736713691913,0.28677535,697.41,696.31,0.28722838]
[1736713691914,1.07406132,697.32,696.31,0.28722838]
[1736713692809,1.07406132,697.31,696.31,0.28722838]
[1736713695214,1.07406132,697.3,696.31,0.28722838]
[1736713696018,1.07406132,697.31,696.31,0.28722838]
[1736713696810,1.07406132,697.3,696.31,0.28722838]
[1736713698314,1.07406132,697.31,696.31,0.28722838]
[1736713700516,0.26372437,697.3,696.31,0.28722838]
[1736713701821,1.07406132,697.17,696.31,0.28722838]
[1736713702620,1.07406132,697.16,696.31,0.28722838]
[1736713703420,1.07406132,697.17,696.31,0.28722838]
[1736713708829,1.07406132,697.18,696.31,0.28722838]
[1736713711329,1.07406132,697.24,696.31,0.28722838]
[1736713711834,1.07406132,697.25,696.31,0.28722838]
[1736713718736,1.07406132,697.24,696.31,0.28722838]
[1736713720239,1.07406132,697.21,696.31,0.28722838]
[1736713721141,1.07406132,697.2,696.31,0.28722838]
[1736713722233,1.07406132,697.3,696.31,0.28722838]
[1736713723039,1.07406132,697.29,696.31,0.28722838]
[1736713723836,1.07406132,697.3,696.31,0.28722838]
[1736713724436,0.28677535,697.41,696.31,0.28722838]
[1736713724437,1.07406132,697.29,696.31,0.28722838]
[1736713729333,1.07406132,697.3,696.31,0.28722838]
[1736713730137,1.07406132,697.29,696.31,0.28722838]
[1736713731940,1.07406132,697.19,696.31,0.28722838]
[1736713734245,1.07406132,697.2,696.31,0.28722838]
[1736713736046,1.07406132,697.19,696.31,0.28722838]
[1736713737545,1.07406132,697.2,696.31,0.28722838]
[1736713741852,1.07406132,697.19,696.31,0.28722838]
[1736713742752,1.07406132,697.18,696.31,0.28722838]
[1736713744253,1.07406132,697.17,696.31,0.28722838]
[1736713745551,1.07406132,697.25,696.31,0.28722838]
[1736713749551,1.07406132,697.26,696.31,0.28722838]
[1736713751758,1.07406132,697.31,696.31,0.28722838]
[1736713755661,1.07406132,697.27,696.31,0.28722838]
[1736713761566,1.07406132,697.19,696.31,0.28722838]
[1736713762568,1.07406132,697.2,696.31,0.28722838]
[1736713763471,1.07406132,697.18,696.31,0.28722838]
[1736713764972,1.07406132,697.17,696.31,0.28722838]
[1736713765776,1.07406132,697.2,696.31,0.28722838]
[1736713766575,1.07406132,697.21,696.31,0.28722838]
[1736713767375,1.07406132,697.2,696.31,0.28722838]
[1736713773178,1.07406132,697.22,696.31,0.28722838]
[1736713774284,1.35961909,697.41,696.31,0.28722838]
[1736713774285,1.07406132,697.21,696.31,0.28722838]
[1736713775979,1.07406132,697.18,696.31,0.28722838]
[1736713780390,0.88788493,697.4,696.31,0.28722838]
[1736713780391,1.07406132,697.25,696.31,0.28722838]
[1736713781188,1.07406132,697.26,696.31,0.28722838]
[1736713783093,1.07406132,697.25,696.31,0.28722838]
[1736713783887,1.07406132,697.24,696.31,0.28722838]
[1736713789897,1.07406132,697.18,696.31,0.28722838]
[1736713791798,1.07406132,697.29,696.31,0.28722838]
[1736713792996,1.07406132,697.28,696.31,0.28722838]
[1736713794000,1.07406132,697.29,696.31,0.28722838]
[1736713794894,1.07406132,697.28,696.31,0.28722838]
[1736713798498,1.07406132,697.27,696.31,0.28722838]
[1736713800699,1.07406132,697.23,696.31,0.28722838]
[1736713801505,0.28677535,697.41,696.31,0.28722838]
[1736713801506,1.07406132,697.19,696.31,0.28722838]
[1736713802605,0.28677535,697.41,696.31,0.28722838]
[1736713802606,1.07406132,697.16,696.31,0.28722838]
[1736713803106,1.07406132,697.18,696.31,0.28722838]
[1736713804101,1.07406132,697.13,696.31,0.28722838]
[1736713805510,1.07406132,697.15,696.31,0.28722838]
[1736713807311,0.88725094,697.4,696.31,0.28722838]
[1736713807312,1.07406132,697.17,696.31,0.28722838]
[1736713809805,1.07406132,697.18,696.31,0.28722838]
[1736713810711,1.07406132,697.19,696.31,0.28722838]
[1736713811710,1.07406132,697.2,696.31,0.28722838]
[1736713812513,1.07406132,697.19,696.31,0.28722838]
[1736713817217,1.07406132,697.18,696.31,0.28722838]
[1736713819613,1.07406132,697.19,696.31,0.28722838]
[1736713821718,1.07284374,697.37,696.31,0.28722838]
[1736713821719,1.07406132,697.18,696.31,0.28722838]
[1736713822618,1.07406132,697.19,696.31,0.28722838]
[1736713822818,0.2637721,697.18,696.31,0.28722838]
[1736713823419,1.07406132,697.14,696.31,0.28722838]
[1736713825417,1.07406132,697.16,696.31,0.28722838]
[1736713826322,1.07406132,697.15,696.31,0.28722838]
[1736713828116,1.07406132,697.21,696.31,0.28722838]
[1736713829323,1.07406132,697.2,696.31,0.28722838]
[1736713832826,1.07406132,697.19,696.31,0.28722838]
[1736713834155,0.28677535,697.41,696.31,0.28722838]
[1736713834156,1.07406132,697.16,696.31,0.28722838]
[1736713834958,0.28677535,697.41,696.31,0.28722838]
[1736713834959,1.07406132,697.14,696.31,0.28722838]
[1736713837242,1.07406132,697.09,696.31,0.28722838]
[1736713838727,1.07406132,697.07,696.31,0.28722838]
[1736713839732,1.07406132,697.03,696.31,0.28722838]
[1736713840846,1.07406132,697.04,696.31,0.28722838]
[1736713841759,0.88748525,697.4,696.31,0.28722838]
[1736713841760,1.07406132,697.05,696.31,0.28722838]
[1736713842841,1.07406132,697.07,696.31,0.28722838]
[1736713843536,1.07406132,697.09,696.31,0.28722838]
[1736713844628,0.88748525,697.4,696.31,0.28722838]
[1736713844629,1.07406132,697.06,696.31,0.28722838]
[1736713845436,1.07406132,697.07,696.31,0.28722838]
[1736713846638,1.07406132,697.1,696.31,0.28722838]
[1736713847639,1.07406132,697.11,696.31,0.28722838]
[1736713849543,1.07406132,697.1,696.31,0.28722838]
[1736713851744,1.07406132,697.09,696.31,0.28722838]
[1736713853039,1.07406132,697.11,696.31,0.28722838]
[1736713853944,1.07406132,697.1,696.31,0.28722838]
[1736713854646,0.88748525,697.4,696.31,0.28722838]
[1736713854647,1.07406132,697.09,696.31,0.28722838]
[1736713854850,0.26383651,697.08,696.31,0.28722838]
[1736713855147,0.26383651,697.08,695.65,2.98972078]
[1736713855348,0.26383651,697.08,695.67,0.28749263]
[1736713855544,0.2638386,697.07,695.67,0.28749263]
[1736713855752,0.28677535,697.41,695.67,0.28749263]
[1736713855753,1.07406132,697.05,695.67,0.28749263]
[1736713855944,0.2638386,697.04,695.67,0.28749263]
[1736713856546,0.2638386,697.04,695.67,3.27721341]
[1736713856849,0.2638386,697.04,695.68,2.8175823]
[1736713857050,0.2638386,697.04,695.7,0.28748023]
[1736713857252,1.07406132,697.01,695.7,0.28748023]
[1736713858545,1.07406132,697.01,695.7,1.36995832]
[1736713858752,1.07406132,697.01,695.7,3.10506253]
[1736713859852,1.07406132,697.01,695.71,2.98972078]
[1736713860153,1.07406132,697.01,695.73,0.28746783]
[1736713861253,1.07406132,697.01,695.73,3.27718861]
[1736713861446,1.07406132,697.01,695.74,2.8175823]
[1736713861648,0.28677535,697.41,695.75,0.28745957]
[1736713861850,0.26383138,697.4,695.75,0.28745957]
[1736713862051,0.55061495,697.39,695.75,0.28745957]
[1736713862251,0.55061907,697.38,695.75,0.28745957]
[1736713862451,0.55062318,697.37,695.75,0.28745957]
[1736713862654,0.55062729,697.36,695.75,3.27718035]
[1736713862849,0.5506314,697.35,695.76,2.8175823]
[1736713863151,0.26383138,697.34,695.77,0.28745131]
[1736713863346,1.07444379,697.21,695.77,0.28745131]
[1736713863550,0.26383138,697.2,695.77,0.28745131]
[1736713864051,1.07444379,697.02,695.77,0.28745131]
[1736713864555,1.07444379,697.02,695.77,3.27717209]
[1736713864850,1.07444379,697.02,695.78,2.8175823]
[1736713865056,1.07444379,697.3,695.79,0.28744305]
[1736713865256,0.26383056,697.29,695.79,0.28744305]
[1736713865655,0.26383004,697.28,695.79,0.28744305]
[1736713865851,0.26383004,697.27,695.79,0.28744305]
[1736713866158,0.26383004,697.26,695.79,3.27716383]
[1736713866356,0.28680825,697.33,695.8,2.8175823]
[1736713866357,0.26383004,697.25,695.8,2.8175823]
[1736713866557,0.26383004,697.32,695.81,0.28743478]
[1736713866752,0.26383004,697.31,695.81,0.28743478]
[1736713866958,0.26383004,697.3,695.81,0.28743478]
[1736713867155,0.26383004,697.29,695.81,0.28743478]
[1736713867356,0.26383004,697.28,695.81,0.28743478]
[1736713867558,0.26383004,697.27,695.81,0.28743478]
[1736713867858,0.26383004,697.26,695.81,0.28743478]
[1736713868058,0.28680825,697.33,695.81,3.27715556]
[1736713868059,0.26383004,697.25,695.81,3.27715556]
[1736713868259,0.26383004,697.24,695.82,2.8175823]
[1736713868460,0.26383004,697.23,695.83,0.28742652]
[1736713868758,0.26383004,697.22,695.83,0.28742652]
[1736713868958,0.26383004,697.21,695.83,0.28742652]
[1736713869153,0.28680825,697.33,695.83,0.28742652]
[1736713869354,0.26383015,697.32,695.83,0.28742652]
[1736713869556,0.26383015,697.31,695.83,0.28742652]
[1736713869760,0.26383015,697.3,695.83,3.2771473]
[1736713869956,0.28680825,697.33,695.83,3.2771473]
[1736713869957,0.26383015,697.29,695.84,1.73510421]
[1736713870156,0.28680825,697.33,695.84,1.73510421]
[1736713870157,0.26383015,697.28,695.85,0.28741826]
[1736713870461,0.28680825,697.33,695.85,0.28741826]
[1736713870462,0.26383015,697.27,695.85,0.28741826]
[1736713870762,0.26383015,697.26,695.85,0.28741826]
[1736713870960,0.26383015,697.25,695.85,0.28741826]
[1736713871160,0.26383015,697.24,695.85,0.28741826]
[1736713871361,0.28680825,697.33,695.85,0.28741826]
[1736713871362,0.26383015,697.32,695.85,3.27713904]
[1736713871563,0.26383015,697.31,695.86,2.81703752]
[1736713871863,0.28680825,697.33,695.86,2.81703752]
[1736713871864,0.26383015,697.3,695.87,0.28741]
[1736713872062,0.26383015,697.29,695.87,0.28741]
[1736713872264,0.26383015,697.28,695.87,0.28741]
[1736713872461,0.26383015,697.27,695.87,0.28741]
[1736713872660,0.26383015,697.26,695.87,0.28741]
[1736713872863,0.26383015,697.25,695.87,0.28741]
[1736713873059,0.26383015,697.24,695.87,0.28741]
[1736713873264,0.26383015,697.23,695.87,0.28741]
[1736713873559,0.26383015,697.22,695.87,0.28741]
[1736713873760,0.26383015,697.21,695.87,0.28741]
[1736713873963,0.28680825,697.33,695.87,0.28741]
[1736713874263,0.26383191,697.32,695.87,0.28741]
[1736713874465,0.26383191,697.31,695.87,0.28741]
[1736713874664,0.26383191,697.3,695.87,0.28741]
[1736713874964,0.26383191,697.29,695.87,0.28741]
[1736713875165,1.07540009,696.95,695.87,0.28741]
[1736713876664,1.07540009,696.94,695.87,0.28741]
[1736713878268,1.07540009,696.97,695.87,0.28741]
[1736713878962,1.07540009,696.98,695.87,0.28741]
[1736713879869,1.07540009,696.97,695.87,0.28741]
[1736713881963,1.07540009,697.22,695.87,0.28741]
[1736713882570,1.07540009,697.27,695.87,0.28741]
[1736713882765,0.26379819,697.26,695.87,0.28741]
[1736713883767,1.07540009,697.03,695.87,0.28741]
[1736713884567,1.07540009,697.04,695.87,0.28741]
[1736713886672,1.07540009,697.06,695.87,0.28741]
[1736713888766,0.8872879,697.32,695.87,0.28741]
[1736713888767,1.07540009,697.08,695.87,0.28741]
[1736713889867,1.07540009,697.09,695.87,0.28741]
[1736713890472,1.07540009,697.09,695.87,1.36951457]
[1736713890767,1.07540009,697.09,695.87,3.102383]
[1736713891575,1.07540009,697.09,695.87,2.02027843]
[1736713891770,1.07540009,697.1,695.87,2.02027843]
[1736713892172,1.07540009,697.1,695.87,3.10278324]
[1736713892375,1.07540009,697.1,695.88,1.73286843]
[1736713892575,1.07540009,697.1,695.87,0.28741]
[1736713894575,1.07540009,697.12,695.87,0.28741]
[1736713895575,0.28680825,697.33,695.87,0.28741]
[1736713895576,1.07540009,697.09,695.87,0.28741]
[1736713896373,1.07540009,697.18,695.87,0.28741]
[1736713896975,0.26386135,697.17,695.87,0.28741]
[1736713897179,1.07540009,697.18,695.87,0.28741]
[1736713897478,0.26388139,697.17,695.87,0.28741]
[1736713897674,1.07540009,697.09,695.87,0.28741]
[1736713897873,0.26392098,697.08,695.87,0.28741]
[1736713898777,0.26392098,697.07,695.87,0.28741]
[1736713898978,0.26392098,697.06,695.87,0.28741]
[1736713899173,0.26392098,697.22,695.87,0.28741]
[1736713899475,1.07540009,697.15,695.87,0.28741]
[1736713899778,0.26392098,697.14,695.87,0.28741]
[1736713899979,1.07540009,697.15,695.87,0.28741]
[1736713900477,0.28680825,697.33,695.87,0.28741]
[1736713900777,0.26392359,697.32,695.87,0.28741]